[Event "27th CRO-chT Women 2018"]
[Site "Biograd"]
[Date "2018.09.08"]
[Round "1.1"]
[White "Videkovic, Marina"]
[Black "Ivekovic, Ana"]
[Result "0-1"]
[ECO "E11"]
[WhiteElo "1833"]
[BlackElo "2118"]
[Annotator "NA"]
[PlyCount "70"]
[EventDate "2018.09.08"]
[EventType "team-tourn"]
[EventCountry "CRO"]
[SourceTitle "playchess.com"]
[Source "ChessBase"]
[SourceQuality "1"]
[TimeControl "40/5400+30:1800+30"]

1. d4 {[%emt 0:00:30]} Nf6 {[%emt 0:00:30]} 2. c4 {[%emt 0:00:30]} e6 {[%emt 0:00:00]} 3. Nf3 {[%emt 0:00:30]} Bb4+ {[%emt 0:00:00]} 4. Bd2 {[%emt 0:00:30]} Qe7 {[%emt 0:01:30]} 5. a3 {[%emt 0:00:30]} Bxd2+ {[%emt 0:01:30]} 6. Nbxd2 {[%emt 0:00:30]} O-O {[%emt 0:01:30]} 7. g3 {[%emt 0:01:30]} d6 {[%emt 0:02:30]} 8. Bg2 {[%emt 0:05:30]} e5 {[%emt 0:07:30] E11: Damenindisch (Bogoljubow-Variante)} (8... Nc6 9. O-O e5 10. d5 Nb8 11. e4 g6 12. Ne1 Nh5 13. Nd3 f5 14. exf5 Bxf5 15. Ne4 Bxe4 16. Bxe4 Nd7 17. Qd2 b6 18. Rae1 Qg7 {0-1 (58) Strebkovs,A (2441)-Pacuszka,T (2295) Warsaw 2008}) 9. e3 {[%emt 0:19:30]} e4 {[%emt 0:28:30]} 10. Ng5 {[%emt 0:11:30]} Bf5 $146 {[%emt 0:03:30]} ({Vorgänger:} 10... Re8 11. b4 h6 12. Ngxe4 Ng4 13. h3 Nxf2 14. Kxf2 f5 15. Qh5 fxe4 16. Qd5+ {½-½ (25) Wika,H (2071)-Lim,W (1865) Penang 2016}) 11. h4 {[%emt 0:09:30]} h6 {[%emt 0:09:30]} 12. Nh3 {[%emt 0:00:30]} c6 {[%emt 0:02:30]} 13. Rc1 {[%emt 0:05:30]} Nbd7 {[%emt 0:06:30]} 14. Nf4 {[%emt 0:03:30]} Bg4 {[%emt 0:03:30]} 15. Qc2 {[%emt 0:01:30]} Rfe8 {[%emt 0:00:30]} 16. Bh3 {[%emt 0:06:30]} Bxh3 {[%emt 0:04:30]} 17. Nxh3 {[%emt 0:00:30]} Ng4 {[%emt 0:01:30]} 18. O-O $15 {[%emt 0:11:18]} Ndf6 {[%emt 0:03:30]} 19. Nf4 {[%emt 0:03:14]} Qd7 {[%emt 0:03:34]} 20. Kg2 {[%emt 0:01:48]} Rac8 {[%emt 0:00:55]} 21. Qc3 {[%emt 0:01:47]} d5 {[%emt 0:08:33]} 22. c5 {[%emt 0:00:46]} g5 {[%emt 0:03:24]} 23. hxg5 {[%emt 0:00:15]} hxg5 {[%emt 0:00:01]} 24. Nh3 {[%emt 0:02:42]} Kg7 {[%emt 0:00:46]} 25. Rh1 {[%emt 0:01:19]} Qf5 {[%emt 0:00:52]} 26. Rcf1 {[%emt 0:08:21]} Re7 {[%emt 0:02:09]} 27. b4 {[%emt 0:00:10]} Rh8 {[%emt 0:01:54]} 28. Qc1 {[%emt 0:00:26]} Rh5 {[%emt 0:00:51]} 29. Qe1 {[%emt 0:00:14]} Qg6 {[%emt 0:01:05]} 30. Qe2 {[%emt 0:03:29]} Re8 {[%emt 0:00:38]} 31. Rfg1 {[%emt 0:00:31]} Reh8 {[%emt 0:00:28]} 32. f3 {[%emt 0:00:27]} exf3+ {[%emt 0:00:51]} 33. Qxf3 {[%emt 0:00:08]} Rxh3 {[%emt 0:00:35]} 34. Rxh3 {[%emt 0:00:15]} Rxh3 {[%emt 0:00:05]} 35. Rh1 {[%emt 0:00:50]} Rxh1 {[%emt 0:00:10]} 0-1

[Event "27th CRO-chT Women 2018"]
[Site "Biograd"]
[Date "2018.09.08"]
[Round "1.2"]
[White "Spiranec, Noemi"]
[Black "Grgic, Neomi"]
[Result "1/2-1/2"]
[ECO "E05"]
[WhiteElo "2035"]
[BlackElo "1851"]
[Annotator "NA"]
[PlyCount "54"]
[EventDate "2018.09.08"]
[EventType "team-tourn"]
[EventCountry "CRO"]
[SourceTitle "playchess.com"]
[Source "ChessBase"]
[SourceQuality "1"]
[TimeControl "40/5400+30:1800+30"]

1. d4 {[%emt 0:00:30]} Nf6 {[%emt 0:00:30]} 2. c4 {[%emt 0:00:00]} e6 {[%emt 0:00:00]} 3. g3 {[%emt 0:00:00]} d5 {[%emt 0:00:00]} 4. Bg2 {[%emt 0:00:00]} Be7 {[%emt 0:00:30]} 5. Nf3 {[%emt 0:00:00]} O-O {[%emt 0:00:30]} 6. O-O {[%emt 0:00:30]} dxc4 {[%emt 0:00:00]} 7. Ne5 {[%emt 0:00:00]} Nc6 {[%emt 0:00:00]} 8. Bxc6 {[%emt 0:00:00]} bxc6 {[%emt 0:00:30]} 9. Nxc6 {[%emt 0:00:00]} Qe8 {[%emt 0:00:00]} 10. Nxe7+ {[%emt 0:00:00]} Qxe7 {[%emt 0:00:00]} 11. Qa4 {[%emt 0:00:30]} e5 {[%emt 0:00:30]} 12. dxe5 {[%emt 0:00:00]} Qxe5 {[%emt 0:00:00]} 13. Qxc4 {[%emt 0:00:00]} Be6 {[%emt 0:01:00]} 14. Qd3 {[%emt 0:10:30]} Rad8 {[%emt 0:16:30]} 15. Qe3 {[%emt 0:00:00]} Qh5 {[%emt 0:01:30]} 16. f3 {[%emt 0:02:00]} Rfe8 {[%emt 0:16:30]} 17. Qf2 {[%emt 0:08:30]} Bc4 {[%emt 0:08:30]} 18. Re1 {[%emt 0:12:30]} Bxe2 {[%emt 0:10:30]} 19. Rxe2 {[%emt 0:00:30]} Rd1+ {[%emt 0:00:30]} 20. Kg2 {[%emt 0:00:30]} Rxe2 {[%emt 0:01:30]} 21. Qxe2 {[%emt 0:00:30]} Rxc1 {[%emt 0:00:30]} 22. Qd2 {[%emt 0:00:30]} Qc5 {[%emt 0:00:30]} 23. Qd8+ {[%emt 0:00:30]} Qf8 {[%emt 0:00:00]} 24. Qd2 {[%emt 0:00:30]} Qc5 {[%emt 0:05:00]} 25. Qd8+ {[%emt 0:00:30]} Qf8 {[%emt 0:00:30]} 26. Qd2 {[%emt 0:00:00]} Qc5 {[%emt 0:00:30]} 27. Qd8+ {[%emt 0:00:00]} Qf8 {[%emt 0:00:00]} 1/2-1/2

[Event "27th CRO-chT Women 2018"]
[Site "Biograd"]
[Date "2018.09.09"]
[Round "1.3"]
[White "Dejanovic, Tereza"]
[Black "Cvitan, Ena"]
[Result "1/2-1/2"]
[ECO "B13"]
[WhiteElo "1815"]
[BlackElo "2009"]
[Annotator "NA"]
[PlyCount "36"]
[EventDate "2018.09.08"]
[EventType "team-tourn"]
[EventCountry "CRO"]
[SourceTitle "playchess.com"]
[Source "ChessBase"]
[SourceQuality "1"]
[TimeControl "40/5400+30:1800+30"]

1. e4 {[%emt 0:00:30]} c6 {[%emt 0:00:30]} 2. d4 {[%emt 0:00:00]} d5 {[%emt 0:00:30]} 3. exd5 {[%emt 0:00:00]} cxd5 {[%emt 0:00:00]} 4. Bd3 {[%emt 0:00:30]} Nc6 {[%emt 0:00:00]} 5. c3 {[%emt 0:00:30]} Nf6 {[%emt 0:00:30]} 6. h3 {[%emt 0:01:30]} g6 {[%emt 0:00:00]} 7. Nf3 {[%emt 0:00:30]} Bf5 {[%emt 0:00:00]} 8. O-O {[%emt 0:01:30]} Bxd3 {[%emt 0:00:30]} 9. Qxd3 {[%emt 0:00:30]} Bg7 {[%emt 0:00:00]} 10. Bf4 {[%emt 0:02:30]} O-O {[%emt 0:00:00]} 11. Nbd2 {[%emt 0:00:30]} a6 {[%emt 0:00:30]} 12. Qe3 {[%emt 0:06:30]} e6 {[%emt 0:07:30]} 13. Bh6 {[%emt 0:04:30]} b5 {[%emt 0:06:30]} 14. Bxg7 {[%emt 0:03:30]} Kxg7 {[%emt 0:00:00]} 15. Nb3 {[%emt 0:00:30]} Nd7 {[%emt 0:14:00]} 16. Nc5 {[%emt 0:11:30]} Nxc5 {[%emt 0:03:30]} 17. dxc5 {[%emt 0:00:30]} Qc7 {[%emt 0:03:30]} 18. b4 {[%emt 0:12:30]} Rfe8 {[%emt 0:32:30]} 1/2-1/2

[Event "27th CRO-chT Women 2018"]
[Site "Biograd"]
[Date "2018.09.08"]
[Round "1.3"]
[White "Raguz, Ivanka"]
[Black "Dejanovic, Tereza"]
[Result "0-1"]
[ECO "D03"]
[WhiteElo "1706"]
[BlackElo "1815"]
[Annotator "NA"]
[PlyCount "68"]
[EventDate "2018.09.08"]
[EventType "team-tourn"]
[EventCountry "CRO"]
[SourceTitle "playchess.com"]
[Source "ChessBase"]
[SourceQuality "1"]
[TimeControl "40/5400+30:1800+30"]

1. d4 {[%emt 0:00:30]} d5 {[%emt 0:00:30]} 2. Nf3 {[%emt 0:00:30]} Nf6 {[%emt 0:00:00]} 3. Bg5 {[%emt 0:00:30]} e6 {[%emt 0:00:00]} 4. e3 {[%emt 0:00:30]} Be7 {[%emt 0:00:30]} 5. Nbd2 {[%emt 0:00:30]} Nbd7 {[%emt 0:00:30]} 6. Bd3 {[%emt 0:00:30]} O-O {[%emt 0:01:30]} 7. Qe2 {[%emt 0:03:30]} c5 {[%emt 0:05:30]} 8. c3 {[%emt 0:00:30]} b6 {[%emt 0:15:30]} 9. h4 {[%emt 0:01:30]} Bb7 {[%emt 0:02:30]} 10. Kf1 {[%emt 0:17:30]} Qc7 {[%emt 0:07:30]} 11. Bf4 {[%emt 0:05:30]} Bd6 {[%emt 0:02:30]} 12. Bxd6 {[%emt 0:04:30]} Qxd6 {[%emt 0:00:00]} 13. Ng5 {[%emt 0:04:30]} e5 {[%emt 0:07:00]} 14. f3 {[%emt 0:11:30]} exd4 {[%emt 0:14:30]} 15. cxd4 {[%emt 0:01:30]} cxd4 {[%emt 0:05:30]} 16. exd4 {[%emt 0:01:30]} Qb4 {[%emt 0:01:30]} 17. Nb3 $17 {[%emt 0:02:30]} Rfe8 {[%emt 0:06:30]} 18. Qc2 {[%emt 0:02:30]} Nf8 {[%emt 0:02:30]} 19. Kf2 {[%emt 0:06:30]} Rac8 {[%emt 0:05:32]} 20. Qd1 {[%emt 0:00:30]} a5 {[%emt 0:03:34]} 21. a3 {[%emt 0:01:30]} Qd6 {[%emt 0:01:41]} 22. Bf5 {[%emt 0:02:30]} Rc7 {[%emt 0:03:21]} 23. Rc1 {[%emt 0:01:30]} Rce7 {[%emt 0:00:43]} 24. Rc3 {[%emt 0:07:30]} Nh5 {[%emt 0:01:45]} 25. Rh3 {[%emt 0:01:30]} Nf4 {[%emt 0:02:07]} 26. Nc1 {[%emt 0:01:30]} Nxh3+ {[%emt 0:00:30]} 27. Nxh3 {[%emt 0:00:56]} Qf6 {[%emt 0:01:47]} 28. Qc2 {[%emt 0:08:38]} Qxh4+ {[%emt 0:04:11]} 29. g3 {[%emt 0:00:51]} Qxd4+ {[%emt 0:00:20]} 30. Kg2 {[%emt 0:00:28]} Ba6 {[%emt 0:02:22]} 31. Nf4 {[%emt 0:02:26]} Re1 {[%emt 0:00:51]} 32. Kh3 {[%emt 0:04:19]} Rh1+ {[%emt 0:00:23]} 33. Kg4 {[%emt 0:00:16]} h5+ {[%emt 0:00:08]} 34. Kg5 {[%emt 0:00:21]} f6# {[%emt 0:00:14]} 0-1

[Event "27th CRO-chT Women 2018"]
[Site "Biograd"]
[Date "2018.09.08"]
[Round "1.4"]
[White "Turk, Vesna"]
[Black "Ivekovic, Zvjezdana"]
[Result "0-1"]
[ECO "D03"]
[WhiteElo "1728"]
[BlackElo "1703"]
[Annotator "NA"]
[PlyCount "98"]
[EventDate "2018.09.08"]
[EventType "team-tourn"]
[EventCountry "CRO"]
[SourceTitle "playchess.com"]
[Source "ChessBase"]
[SourceQuality "1"]
[TimeControl "40/5400+30:1800+30"]

1. d4 {[%emt 0:00:30]} d5 {[%emt 0:00:30]} 2. Nf3 {[%emt 0:00:00]} Nf6 {[%emt 0:00:30]} 3. Bg5 {[%emt 0:00:00]} e6 {[%emt 0:00:30]} 4. e3 {[%emt 0:00:30]} Bb4+ {[%emt 0:01:30]} 5. c3 {[%emt 0:00:30]} Bd6 {[%emt 0:00:30]} 6. Bd3 {[%emt 0:01:30]} h6 {[%emt 0:00:00]} 7. Bh4 {[%emt 0:00:30]} Nbd7 {[%emt 0:03:00]} 8. Nbd2 {[%emt 0:01:30]} c6 {[%emt 0:12:30]} 9. e4 {[%emt 0:06:30]} dxe4 {[%emt 0:04:30]} 10. Nxe4 {[%emt 0:00:30]} Be7 {[%emt 0:00:30]} 11. Nxf6+ {[%emt 0:04:30]} Nxf6 {[%emt 0:00:30]} 12. Ne5 {[%emt 0:07:30]} Qd5 {[%emt 0:06:30]} 13. O-O {[%emt 0:06:30]} g5 {[%emt 0:07:30]} 14. Bg3 {[%emt 0:05:30]} h5 {[%emt 0:10:30]} 15. f4 {[%emt 0:06:30]} g4 {[%emt 0:02:30]} 16. Bh4 {[%emt 0:02:30]} Nd7 {[%emt 0:14:30]} 17. Qe1 {[%emt 0:02:30]} Nxe5 {[%emt 0:05:30]} 18. fxe5 {[%emt 0:00:30]} Qd8 {[%emt 0:02:30]} 19. Qf2 {[%emt 0:01:30]} Rf8 {[%emt 0:02:30]} 20. Bxe7 {[%emt 0:03:30]} Qxe7 {[%emt 0:00:30]} 21. Qf6 {[%emt 0:00:30]} Bd7 {[%emt 0:03:30]} 22. Qxe7+ {[%emt 0:01:30]} Kxe7 {[%emt 0:00:00]} 23. Rf6 {[%emt 0:00:30]} Rac8 {[%emt 0:01:00]} 24. Raf1 {[%emt 0:00:30]} c5 {[%emt 0:01:41]} 25. Rh6 {[%emt 0:03:30]} cxd4 {[%emt 0:00:30]} 26. cxd4 {[%emt 0:00:30]} Rh8 {[%emt 0:00:30]} 27. Rhf6 {[%emt 0:02:30]} Rhf8 {[%emt 0:00:11]} 28. Rh6 {[%emt 0:05:30]} Rh8 {[%emt 0:01:05]} 29. Rhf6 {[%emt 0:09:30]} Rhf8 {[%emt 0:02:16]} 30. Kf2 {[%emt 0:00:00]} Bc6 {[%emt 0:00:47]} 31. Kg3 {[%emt 0:03:00]} h4+ {[%emt 0:04:32]} 32. Kf2 {[%emt 0:10:14]} h3 {[%emt 0:03:40]} 33. gxh3 {[%emt 0:00:53]} gxh3 {[%emt 0:00:04]} 34. Ke3 {[%emt 0:00:30]} Bg2 {[%emt 0:00:28]} 35. Rg1 {[%emt 0:02:43]} Rg8 {[%emt 0:00:26]} 36. Rf2 {[%emt 0:01:34]} Rg4 {[%emt 0:03:34]} 37. Rf4 {[%emt 0:02:11]} Rxf4 {[%emt 0:04:27]} 38. Kxf4 {[%emt 0:00:41]} f6 {[%emt 0:00:30]} 39. exf6+ {[%emt 0:00:32]} Kxf6 {[%emt 0:00:14]} 40. Re1 {[%emt 0:00:00]} Rd8 {[%emt 0:00:00]} 41. Ke3 {[%emt 0:01:42]} Kg5 {[%emt 0:02:05]} 42. Rg1 {[%emt 0:00:30]} Kh4 {[%emt 0:00:30]} 43. Rc1 {[%emt 0:00:30]} Rf8 {[%emt 0:01:30]} 44. Rc7 {[%emt 0:03:30]} Rf3+ {[%emt 0:00:30]} 45. Ke2 {[%emt 0:00:30]} Rf4 {[%emt 0:01:30]} 46. Rh7+ {[%emt 0:00:30]} Kg5 {[%emt 0:00:30]} 47. Rg7+ {[%emt 0:00:30]} Kf6 {[%emt 0:00:30]} 48. Rg6+ {[%emt 0:00:30]} Kf7 {[%emt 0:00:30]} 49. Ke3 {[%emt 0:00:30]} Rf3+ {[%emt 0:01:30]} 0-1

[Event "27th CRO-chT Women 2018"]
[Site "Biograd"]
[Date "2018.09.08"]
[Round "1.5"]
[White "Janzelj, Lara"]
[Black "Rozman, Monika"]
[Result "0-1"]
[ECO "D00"]
[WhiteElo "2254"]
[BlackElo "2037"]
[Annotator "NA"]
[PlyCount "100"]
[EventDate "2018.09.08"]
[EventType "team-tourn"]
[EventCountry "CRO"]
[SourceTitle "playchess.com"]
[Source "ChessBase"]
[SourceQuality "1"]
[TimeControl "40/5400+30:1800+30"]

1. d4 {[%emt 0:00:30]} Nf6 {[%emt 0:00:30]} 2. Nc3 {[%emt 0:00:00]} d5 {[%emt 0:00:00]} 3. Bf4 {[%emt 0:00:00]} c6 {[%emt 0:00:00]} 4. e3 {[%emt 0:00:00]} Bf5 {[%emt 0:00:30] D00: 1 d4 d5: Unusual lines} 5. f3 {[%emt 0:01:00]} e6 {[%emt 0:08:30]} 6. g4 {[%emt 0:01:30]} Bg6 {[%emt 0:00:30]} 7. h4 {[%emt 0:01:30]} h6 {[%emt 0:06:30]} 8. Bd3 {[%emt 0:02:30]} Bxd3 {[%emt 0:00:30]} 9. Qxd3 {[%emt 0:00:30]} Be7 $146 {[%emt 0:02:30]} ({Predecessor:} 9... Bd6 10. Nge2 Bxf4 11. Nxf4 Nbd7 12. O-O-O {1-0 (40) Darini,P (2511)-Amonatov,F (2620) Doha 2016}) 10. Nge2 {[%emt 0:04:30]} Na6 {[%emt 0:07:30]} 11. O-O-O {[%emt 0:11:30]} Nd7 {[%emt 0:02:30]} 12. Rdg1 {[%emt 0:11:30]} Qa5 {[%emt 0:05:30]} 13. Kb1 {[%emt 0:04:30]} O-O-O {[%emt 0:03:30]} 14. Nc1 {[%emt 0:04:30]} Rde8 {[%emt 0:00:30]} 15. Nb3 {[%emt 0:03:30]} Qd8 {[%emt 0:00:30]} 16. Na4 {[%emt 0:07:30]} Bxh4 {[%emt 0:10:30]} 17. Rxh4 $2 {[%emt 0:05:30]} (17. Rc1 $11 {and White is okay.}) 17... Qxh4 {[%emt 0:00:00]} 18. Na5 {[%emt 0:00:30]} Ndb8 {[%emt 0:06:00]} ({Schwächer ist} 18... Qf2 19. Rf1 $11) 19. g5 {[%emt 0:04:30]} Rd8 {[%emt 0:10:30]} 20. Qb3 {[%emt 0:13:30]} Rd7 {[%emt 0:06:30]} 21. Bxb8 {[%emt 0:07:33]} Nxb8 {[%emt 0:06:30]} 22. Nc5 {[%emt 0:03:52]} Qh2 {[%emt 0:00:30]} 23. Rc1 {[%emt 0:00:09]} b6 {[%emt 0:01:30]} 24. Nxd7 {[%emt 0:00:37]} Kxd7 {[%emt 0:00:30]} 25. gxh6 {[%emt 0:02:16]} Rxh6 {[%emt 0:04:44]} 26. f4 {[%emt 0:02:30]} Kc7 {[%emt 0:00:43]} 27. c4 {[%emt 0:02:05]} Qg2 {[%emt 0:01:51]} 28. cxd5 {[%emt 0:01:38]} Qe4+ {[%emt 0:01:05]} 29. Ka1 {[%emt 0:01:18]} Rh1 {[%emt 0:00:15]} 30. Qc3 {[%emt 0:00:41]} Rxc1+ {[%emt 0:00:15]} 31. Qxc1 {[%emt 0:00:01]} bxa5 {[%emt 0:00:10]} 32. dxc6 {[%emt 0:00:12]} Nxc6 {[%emt 0:01:29]} 33. a3 {[%emt 0:00:04]} Kd7 {[%emt 0:00:43]} 34. Qg1 {[%emt 0:02:01]} g6 {[%emt 0:01:10]} 35. Qc1 {[%emt 0:00:03]} a4 {[%emt 0:01:00]} 36. Qc3 {[%emt 0:00:17]} Qh1+ {[%emt 0:01:05]} 37. Ka2 {[%emt 0:00:04]} Qd5+ {[%emt 0:00:09]} 38. Kb1 {[%emt 0:00:13]} Na5 {[%emt 0:01:33]} 39. Qb4 {[%emt 0:00:21]} Nc6 {[%emt 0:02:23]} 40. Qb7+ {[%emt 0:00:00]} Ke8 {[%emt 0:00:00]} 41. Qa8+ {[%emt 0:01:35]} Ke7 {[%emt 0:02:55]} 42. Kc1 {[%emt 0:01:30]} Qc4+ {[%emt 0:03:30]} 43. Kd2 {[%emt 0:00:30]} Qb5 {[%emt 0:00:00]} 44. Ke1 {[%emt 0:00:30]} Qa5+ {[%emt 0:01:00]} 45. Kd1 {[%emt 0:00:30]} Qa6 {[%emt 0:01:30]} 46. Ke1 {[%emt 0:01:30]} Na5 {[%emt 0:01:30]} 47. Qb8 {[%emt 0:00:30]} Qb6 {[%emt 0:02:30]} 48. Qe5 {[%emt 0:00:00]} Nc4 {[%emt 0:00:30]} 49. Qg5+ {[%emt 0:01:00]} Ke8 {[%emt 0:00:30]} 50. Qh4 {[%emt 0:01:30]} Qxb2 $19 {[%emt 0:00:30]} 0-1

[Event "27th CRO-chT Women 2018"]
[Site "Biograd"]
[Date "2018.09.08"]
[Round "1.6"]
[White "Blazeka, Mihaela"]
[Black "Kruljac, Petra"]
[Result "1-0"]
[ECO "B00"]
[WhiteElo "2048"]
[BlackElo "2069"]
[Annotator "NA"]
[PlyCount "141"]
[EventDate "2018.09.08"]
[EventType "team-tourn"]
[EventCountry "CRO"]
[SourceTitle "playchess.com"]
[Source "ChessBase"]
[SourceQuality "1"]
[TimeControl "40/5400+30:1800+30"]

1. e4 {[%emt 0:00:30]} b6 {[%emt 0:00:30]} 2. d4 {[%emt 0:00:30]} Bb7 {[%emt 0:00:00]} 3. Bd3 {[%emt 0:02:30]} e6 {[%emt 0:00:00]} 4. Nf3 {[%emt 0:01:30]} Nf6 {[%emt 0:01:30]} 5. Qe2 {[%emt 0:01:30]} d5 {[%emt 0:04:30]} 6. e5 {[%emt 0:01:30]} Ne4 {[%emt 0:10:30]} 7. Nbd2 {[%emt 0:04:30] B00: Queen's Fianchetto Defence, Nimzowitsch Defence} Nxd2 {[%emt 0:00:00]} 8. Bxd2 {[%emt 0:00:30]} c5 {[%emt 0:00:00]} (8... Qc8 9. O-O Ba6 10. c4 dxc4 11. Bxc4 Be7 12. Rac1 O-O 13. Qe4 Bxc4 14. Rxc4 Nd7 {1-0 (48) Dimitrov,R (2448)-Filev,G (2346) Plovdiv 2017}) 9. c3 {[%emt 0:00:30]} Be7 {[%emt 0:00:30]} 10. O-O {[%emt 0:02:30]} Qc8 {[%emt 0:03:30]} 11. Rac1 {[%emt 0:13:30]} Ba6 {[%emt 0:06:30]} 12. c4 {[%emt 0:01:30]} dxc4 $146 {[%emt 0:06:30]} ({Predecessor:} 12... Bxc4 13. Bxc4 dxc4 14. dxc5 b5 {1-0 (29) Niedermaier,B (1879)-Lenk,S (1743) Vaterstetten 2007}) 13. Bxc4 {[%emt 0:03:30]} O-O {[%emt 0:17:30]} 14. Ng5 {[%emt 0:10:30]} Bxc4 {[%emt 0:14:30]} 15. Rxc4 {[%emt 0:02:30]} Qd8 {[%emt 0:01:30]} 16. Nxh7 {[%emt 0:06:30]} Nc6 {[%emt 0:09:30]} 17. Nxf8 {[%emt 0:01:30]} Nxd4 {[%emt 0:01:30]} 18. Qe4 {[%emt 0:08:30]} Bxf8 {[%emt 0:01:51]} 19. Rc3 {[%emt 0:02:30]} Qd5 {[%emt 0:03:15]} 20. Qxd5 {[%emt 0:03:30]} exd5 {[%emt 0:00:02]} 21. Re1 {[%emt 0:00:30]} c4 {[%emt 0:05:37]} 22. Kf1 {[%emt 0:05:30]} Bb4 {[%emt 0:00:32]} 23. Rd1 {[%emt 0:01:30]} Bxc3 {[%emt 0:02:58]} 24. Bxc3 {[%emt 0:00:30]} Nb5 {[%emt 0:00:32]} 25. Rxd5 {[%emt 0:00:30]} Nxc3 {[%emt 0:01:17]} 26. bxc3 {[%emt 0:00:00]} Rb8 {[%emt 0:02:20]} 27. a4 {[%emt 0:03:00]} a6 {[%emt 0:02:10]} 28. Ke2 {[%emt 0:00:30]} Kf8 {[%emt 0:00:01]} 29. Ke3 {[%emt 0:00:30]} Ke7 {[%emt 0:01:28]} 30. Kd4 {[%emt 0:03:18]} b5 {[%emt 0:00:11]} 31. axb5 {[%emt 0:01:51]} axb5 {[%emt 0:00:16]} 32. f4 {[%emt 0:00:33]} g6 {[%emt 0:04:06]} 33. g4 {[%emt 0:00:45]} Ke6 {[%emt 0:00:43]} 34. Rd6+ {[%emt 0:00:31]} Ke7 {[%emt 0:00:02]} 35. Kc5 {[%emt 0:01:50]} b4 {[%emt 0:00:38]} 36. Kxc4 {[%emt 0:02:33]} b3 {[%emt 0:00:54]} 37. Rd1 {[%emt 0:00:07]} b2 {[%emt 0:00:24]} 38. Rb1 {[%emt 0:00:13]} Ke6 {[%emt 0:00:09]} 39. Kd3 {[%emt 0:00:30]} g5 {[%emt 0:00:15]} 40. fxg5 {[%emt 0:00:00]} Kxe5 {[%emt 0:00:00]} 41. Kc2 {[%emt 0:03:49]} Rh8 {[%emt 0:14:30]} 42. Rxb2 {[%emt 0:03:30]} Rxh2+ {[%emt 0:00:12]} 43. Kb3 {[%emt 0:00:30]} Rh8 {[%emt 0:04:46]} 44. Rf2 {[%emt 0:00:30]} Ke6 {[%emt 0:00:20]} 45. Rf6+ {[%emt 0:00:30]} Ke7 {[%emt 0:00:10]} 46. c4 {[%emt 0:00:30]} Rb8+ {[%emt 0:00:54]} 47. Kc3 {[%emt 0:00:30]} Rc8 {[%emt 0:00:25]} 48. Kd4 {[%emt 0:00:30]} Rd8+ {[%emt 0:02:38]} 49. Kc5 {[%emt 0:00:30]} Rc8+ {[%emt 0:00:06]} 50. Rc6 {[%emt 0:00:30]} Rg8 {[%emt 0:00:11]} 51. g6 {[%emt 0:00:30]} fxg6 {[%emt 0:00:03]} 52. g5 {[%emt 0:01:30]} Kd7 {[%emt 0:01:10]} 53. Rf6 $18 {[%emt 0:00:30]} Ke7 {[%emt 0:06:59]} 54. Kb6 {[%emt 0:01:30]} Rb8+ {[%emt 0:00:34]} 55. Kc7 {[%emt 0:00:30]} Rb4 {[%emt 0:00:17]} 56. c5 {[%emt 0:00:00]} Rg4 {[%emt 0:01:37]} 57. Rxg6 {[%emt 0:00:00]} Kf7 {[%emt 0:00:13]} 58. Rf6+ {[%emt 0:00:00]} Ke7 {[%emt 0:00:02]} 59. Rf2 {[%emt 0:03:00]} Rxg5 {[%emt 0:00:07]} 60. Re2+ {[%emt 0:00:30]} Kf6 {[%emt 0:00:36]} 61. Kd6 {[%emt 0:01:30]} Kf7 {[%emt 0:01:04]} 62. c6 {[%emt 0:00:30]} Rg1 {[%emt 0:00:09]} 63. c7 {[%emt 0:01:30]} Rd1+ {[%emt 0:00:43]} 64. Kc6 {[%emt 0:00:30]} Rc1+ {[%emt 0:00:04]} 65. Kd7 {[%emt 0:00:30]} Rd1+ {[%emt 0:00:11]} 66. Kc8 {[%emt 0:00:00]} Rb1 {[%emt 0:00:50]} 67. Re4 {[%emt 0:02:00]} Rb2 {[%emt 0:03:00]} 68. Kd7 {[%emt 0:00:30]} Rd2+ {[%emt 0:00:28]} 69. Kc6 {[%emt 0:00:30]} Rc2+ {[%emt 0:00:08]} 70. Kd6 {[%emt 0:00:30]} Rc1 {[%emt 0:00:53]} 71. Re5 {[%emt 0:00:00]} 1-0

[Event "27th CRO-chT Women 2018"]
[Site "Biograd"]
[Date "2018.09.08"]
[Round "1.7"]
[White "Radikovic, Anamarija"]
[Black "Ljikar, Tamara"]
[Result "1/2-1/2"]
[ECO "B41"]
[WhiteElo "1906"]
[BlackElo "1920"]
[Annotator "NA"]
[PlyCount "66"]
[EventDate "2018.09.08"]
[EventType "team-tourn"]
[EventCountry "CRO"]
[SourceTitle "playchess.com"]
[Source "ChessBase"]
[SourceQuality "1"]
[TimeControl "40/5400+30:1800+30"]

1. e4 {[%emt 0:00:30]} c5 {[%emt 0:00:30]} 2. Nf3 {[%emt 0:00:00]} e6 {[%emt 0:00:30]} 3. d4 {[%emt 0:00:00]} cxd4 {[%emt 0:00:30]} 4. Nxd4 {[%emt 0:00:00]} a6 {[%emt 0:03:30]} 5. c4 {[%emt 0:00:00]} Nf6 {[%emt 0:07:30]} 6. Nc3 {[%emt 0:01:30]} Bb4 {[%emt 0:06:30]} 7. Bd3 {[%emt 0:05:30]} Qc7 {[%emt 0:05:30]} 8. O-O {[%emt 0:01:30]} O-O {[%emt 0:04:30]} 9. Bg5 {[%emt 0:06:30]} Nc6 {[%emt 0:17:30]} 10. Nxc6 {[%emt 0:06:30]} dxc6 {[%emt 0:00:30]} 11. f4 {[%emt 0:14:30]} Ne8 {[%emt 0:18:30]} 12. e5 {[%emt 0:02:30]} f5 {[%emt 0:03:30]} 13. exf6 {[%emt 0:06:30]} gxf6 {[%emt 0:07:30]} 14. Bh4 {[%emt 0:00:30]} Kh8 {[%emt 0:05:05]} 15. Qc2 {[%emt 0:05:30]} Bd6 {[%emt 0:02:08]} 16. Ne2 {[%emt 0:04:30]} c5 {[%emt 0:02:21]} 17. Bg3 {[%emt 0:04:30]} Rb8 {[%emt 0:02:00]} 18. a4 $16 {[%emt 0:07:30]} b6 {[%emt 0:00:09]} 19. Rae1 {[%emt 0:00:30]} Rg8 {[%emt 0:05:24]} 20. Nc3 {[%emt 0:03:30]} Qf7 {[%emt 0:01:16]} 21. Qe2 {[%emt 0:03:30]} f5 {[%emt 0:00:36]} 22. Bc2 {[%emt 0:06:56]} Ng7 {[%emt 0:00:56]} 23. Rd1 {[%emt 0:01:24]} Bc7 {[%emt 0:00:10]} 24. Rd3 {[%emt 0:01:53]} Nh5 {[%emt 0:00:37]} 25. Bd1 {[%emt 0:01:43]} Nf6 {[%emt 0:00:28]} 26. Re3 {[%emt 0:02:31]} Ng4 {[%emt 0:00:32]} 27. Rd3 {[%emt 0:00:11]} Bb7 {[%emt 0:00:10]} 28. Re1 {[%emt 0:01:45]} Rbe8 {[%emt 0:01:31]} 29. Qd2 {[%emt 0:00:18]} Nf6 {[%emt 0:00:28]} 30. Bf3 {[%emt 0:00:45]} Bxf3 {[%emt 0:03:17]} 31. Rxf3 {[%emt 0:00:06]} Nh5 {[%emt 0:00:40]} 32. Ne2 {[%emt 0:01:33]} Nf6 {[%emt 0:00:34]} 33. Nc3 {[%emt 0:00:52]} Nh5 {[%emt 0:00:05]} 1/2-1/2